bitfinex-derivatives/quotes_SOLF0:USTF0_20240918
["timestamp","ask_amount","ask_price","bid_price","bid_amount"]
[1726674172808,6.8437,127.32,127.26,3.9285]
[1726674173206,2.9168,127.32,127.24,24.15]
[1726674173712,3.9273,127.31,127.25,3.9288]
[1726674173913,2.9168,127.32,127.23,3.0203]
[1726674174411,2.9168,127.32,127.23,0.02]
[1726674174618,27.9877486,127.31,127.23,0.02]
[1726674174917,3.9279,127.29,127.23,3.9496]
[1726674175405,27.0903,127.28,127.23,0.02]
[1726674175612,24.15,127.26,127.23,0.02]
[1726674175811,3.0233,127.25,127.23,0.02]
[1726674176413,6.9523,127.25,127.23,0.02]
[1726674176609,3.0233,127.25,127.23,0.02]
[1726674178722,2.9403,127.28,127.25,3.9289]
[1726674179016,2.9403,127.28,127.23,0.02]
[1726674179410,2.9403,127.28,127.25,3.9289]
[1726674179810,2.9403,127.28,127.23,0.02]
[1726674180016,3.1044,127.29,127.23,0.02]
[1726674180417,3.1044,127.29,127.27,3.9284]
[1726674180623,3.0491,127.31,127.24,24.15]
[1726674181013,6.9763,127.31,127.23,0.02]
[1726674181214,6.91850797,127.31,127.23,0.02]
[1726674181411,6.91850797,127.31,127.24,3.9292]
[1726674181412,3.9277,127.3,127.24,3.9292]
[1726674181614,3.9277,127.3,127.23,0.02]
[1726674181615,24.15,127.3,127.23,0.02]
[1726674182118,3.9283,127.28,127.23,0.02]
[1726674182311,24.15,127.28,127.23,0.02]
[1726674182511,3.9285,127.27,127.23,0.02]
[1726674182917,2.94,127.26,127.23,0.02]
[1726674184617,3.0491,127.31,127.2,24.15]
[1726674184820,5.9655,127.31,127.23,24.15]
[1726674185022,5.9655,127.31,127.26,3.9284]
[1726674185321,5.9655,127.31,127.23,24.15]
[1726674185517,5.9655,127.31,127.28,3.9281]
[1726674186417,5.9655,127.31,127.19,3.0567]
[1726674186418,24.15,127.29,127.19,3.0567]
[1726674186828,28.0779,127.29,127.23,3.9294]
[1726674187632,3.9281,127.28,127.23,3.9294]
[1726674190028,3.9285,127.27,127.22,3.9297]
[1726674190829,3.9282,127.28,127.23,3.9296]
[1726674191028,24.15,127.29,127.19,27.2067]
[1726674191531,3.9283,127.28,127.22,3.93]
[1726674192333,3.9283,127.28,127.23,3.9296]
[1726674192630,28.0779,127.29,127.19,27.2067]
[1726674192832,24.15,127.29,127.19,27.2067]
[1726674193028,3.9283,127.28,127.19,27.2067]
[1726674193929,3.9283,127.28,127.2,15.09]
[1726674194132,3.9285,127.27,127.18,9.22021321]
[1726674194333,19.0185,127.27,127.18,24.31021321]
[1726674194526,19.0185,127.27,127.22,3.9298]
[1726674194922,19.0185,127.27,127.18,24.31021321]
[1726674194923,3.9287,127.26,127.18,24.31021321]
[1726674195124,3.9287,127.26,127.21,3.93]
[1726674195928,3.929,127.25,127.2,3.9304]
[1726674196133,6.9659,127.25,127.2,3.9304]
[1726674199241,6.9659,127.25,127.21,3.9302]
[1726674199242,3.0369,127.25,127.21,3.9302]
[1726674199737,3.0369,127.25,127.18,24.31021321]
[1726674200242,15.09,127.28,127.2,15.09]
[1726674200434,2.8175,127.3,127.23,15.09]
[1726674200737,2.8175,127.3,127.24,3.0381]
[1726674200932,2.8175,127.3,127.27,3.9282]
[1726674201141,15.09,127.33,127.25,15.09]
[1726674202033,3.9264,127.34,127.28,3.928]
[1726674202237,29.9024,127.37,127.26,24.13]
[1726674202629,5.7724,127.37,127.28,24.13]
[1726674202834,226.0,127.4,127.33,24.13]
[1726674203136,2.8201,127.44,127.37,3.9251]
[1726674203341,2.8201,127.44,127.34,5.8832]
[1726674203534,26.9501,127.44,127.34,5.8832]
[1726674203738,3.924,127.42,127.35,3.9258]
[1726674204139,3.924,127.42,127.34,5.8832]
[1726674204338,26.9501,127.44,127.34,5.8832]
[1726674204539,2.8201,127.44,127.35,24.13]
[1726674204839,2.8201,127.44,127.34,5.8832]
[1726674205043,3.9238,127.42,127.35,3.9258]
[1726674205642,26.9501,127.44,127.34,9.8094]
[1726674206039,3.9243,127.41,127.35,3.9259]
[1726674206234,26.9501,127.44,127.34,5.8832]
[1726674206745,3.9238,127.42,127.34,5.8832]
[1726674206946,26.9501,127.44,127.34,5.8832]
[1726674207143,3.9238,127.42,127.36,3.9254]
[1726674207441,26.9501,127.44,127.36,3.9254]
[1726674207638,26.9501,127.44,127.34,5.8832]
[1726674208042,3.9236,127.43,127.34,5.8832]
[1726674208542,3.924,127.42,127.36,3.9254]
[1726674209141,226.0,127.49,127.37,24.13]
[1726674209346,2.8589,127.48,127.4,24.13]
[1726674209549,6.7809,127.48,127.41,6.9473]
[1726674209744,6.7809,127.48,127.41,3.0233]
[1726674210041,3.9227,127.46,127.39,3.9245]
[1726674210243,26.9889,127.48,127.37,24.13]
[1726674210547,26.9889,127.48,127.35,27.1533]
[1726674210743,3.9229,127.45,127.38,3.9248]
[1726674210936,26.9889,127.48,127.35,27.1533]
[1726674211337,26.9889,127.48,127.37,24.13]
[1726674211848,30.911,127.48,127.41,3.9239]
[1726674212145,30.911,127.48,127.37,24.13]
[1726674212542,30.911,127.48,127.41,3.9239]
[1726674213144,3.9223,127.47,127.41,3.9239]
[1726674214550,30.911,127.48,127.42,3.9238]
[1726674216548,3.9223,127.47,127.42,3.9238]
[1726674217843,6.7809,127.48,127.43,3.9235]
[1726674219852,6.7809,127.48,127.44,3.9231]
[1726674220951,6.7809,127.48,127.43,3.9233]
[1726674221152,3.9223,127.47,127.38,28.04527952]
[1726674221550,3.9227,127.46,127.41,3.9239]
[1726674222854,3.9231,127.45,127.4,3.9243]
[1726674223053,3.9231,127.45,127.35,3.0233]
[1726674223054,24.13,127.45,127.35,3.0233]
[1726674223251,2.9463,127.44,127.35,3.0233]
[1726674223452,6.0035,127.44,127.35,3.0233]
[1726674223849,3.9236,127.43,127.38,3.9248]
[1726674224049,19.0036,127.43,127.38,3.9248]
[1726674225753,15.08,127.43,127.39,3.9246]
[1726674225956,9.9268,127.44,127.37,15.08]
[1726674226156,2.9463,127.44,127.37,15.08]
[1726674227053,2.9463,127.44,127.4,3.9242]
[1726674227250,6.8695,127.44,127.4,3.9242]
[1726674227452,2.9463,127.44,127.4,3.9242]
[1726674227654,2.9463,127.44,127.39,3.9247]
[1726674227852,21.9497,127.44,127.39,3.9247]
[1726674228360,3.9235,127.43,127.38,3.9249]
[1726674228554,18.0263,127.44,127.35,18.1033]
[1726674228853,3.9243,127.41,127.36,3.9254]
[1726674229052,2.9211,127.4,127.36,3.9254]
[1726674229254,18.0011,127.4,127.34,2.8451]
[1726674229457,21.9257,127.4,127.35,3.9258]
[1726674229954,21.9257,127.4,127.36,3.9256]
[1726674230560,18.0011,127.4,127.36,3.9256]
[1726674230759,18.0011,127.4,127.34,15.08]
[1726674230760,2.9211,127.4,127.34,15.08]
[1726674231260,18.0263,127.44,127.35,15.08]
[1726674231455,18.0263,127.44,127.37,15.08]
[1726674231456,2.9463,127.44,127.37,15.08]
[1726674231860,15.08,127.45,127.34,2.9948]
[1726674231861,2.8947,127.46,127.41,3.9238]
[1726674232057,2.8947,127.46,127.39,15.08]
[1726674232258,2.8947,127.46,127.41,3.924]
[1726674232857,6.8175,127.46,127.41,3.924]
[1726674233458,2.8947,127.46,127.39,15.08]
[1726674233955,2.8947,127.46,127.39,3.046]
[1726674234150,3.9229,127.45,127.39,3.046]
[1726674234759,2.8947,127.46,127.39,3.046]
[1726674236454,3.9231,127.45,127.4,3.9243]
[1726674236858,6.8174,127.46,127.41,3.9241]
[1726674237261,2.8947,127.46,127.39,3.046]
[1726674237655,2.8947,127.46,127.4,24.12]
[1726674238264,2.8947,127.46,127.4,27.0216]
[1726674238467,2.831,127.49,127.4,27.0216]
[1726674238763,3.922,127.48,127.43,3.9233]
[1726674240359,3.922,127.48,127.4,27.0216]
[1726674240557,2.831,127.49,127.4,27.0216]
[1726674240866,3.9218,127.49,127.44,3.923]
[1726674241061,2.9717,127.5,127.44,3.923]
[1726674241463,3.9222,127.48,127.43,3.9234]
[1726674241663,27.0917,127.5,127.43,3.9234]
[1726674241862,24.12,127.48,127.39,3.046]
[1726674242063,3.096,127.47,127.39,3.046]
[1726674242668,3.9228,127.46,127.41,3.9238]
[1726674242966,3.096,127.47,127.39,3.046]
[1726674243164,7.0184,127.47,127.39,3.046]
[1726674243667,3.9226,127.46,127.42,3.9236]
[1726674246172,2.9717,127.5,127.42,24.12]
[1726674246560,2.9717,127.5,127.44,3.923]
[1726674246561,3.9218,127.49,127.44,3.923]
[1726674247473,2.9717,127.5,127.4,27.0316]
[1726674248064,3.9224,127.47,127.42,3.9236]
[1726674248270,2.9717,127.5,127.42,24.12]
[1726674248769,2.9717,127.5,127.4,2.9116]
[1726674249161,6.84780897,127.5,127.4,2.9116]
[1726674250270,24.12,127.49,127.42,3.9235]
[1726674250471,24.12,127.46,127.34,2.8716]
[1726674250661,24.12,127.44,127.34,5.7346]
[1726674250868,2.94,127.43,127.34,5.7346]
[1726674251069,24.12,127.42,127.34,5.7346]
[1726674251270,3.9243,127.41,127.35,3.9257]
[1726674251467,24.12,127.42,127.34,5.7346]
[1726674251872,3.9241,127.41,127.36,3.9254]
[1726674252068,3.9241,127.41,127.34,5.7346]
[1726674252675,3.9241,127.41,127.35,3.9257]
[1726674253074,3.9244,127.4,127.35,3.9257]
[1726674253269,3.9244,127.4,127.34,3.9261]
[1726674253470,24.12,127.4,127.31,157.04]
[1726674253667,3.9251,127.38,127.31,157.04]
[1726674253876,24.12,127.38,127.31,157.04]
[1726674254075,24.12,127.38,127.28,5.8149]
[1726674254076,2.9633,127.37,127.28,5.8149]
[1726674254272,24.12,127.36,127.28,5.8149]
[1726674255168,3.9266,127.33,127.28,2.9433]
[1726674255672,3.9266,127.33,127.27,3.9284]
[1726674255673,3.9267,127.33,127.27,3.9284]
[1726674256369,3.9267,127.33,127.25,24.12]
[1726674256574,3.9267,127.33,127.28,3.9281]
[1726674256877,24.12,127.36,127.27,24.12]
[1726674257179,2.9633,127.37,127.27,24.12]
[1726674257383,3.9258,127.36,127.27,24.12]
[1726674258074,3.9258,127.36,127.3,3.9273]
[1726674258279,24.12,127.36,127.25,24.12]
[1726674258777,3.9261,127.35,127.29,3.9275]
[1726674259579,3.9258,127.36,127.27,24.12]
[1726674260178,3.926,127.35,127.3,3.9273]
[1726674261380,3.9263,127.34,127.29,3.9276]
[1726674261784,3.9265,127.34,127.25,24.12]
[1726674263681,3.9265,127.34,127.29,3.9276]
[1726674264284,28.11991433,127.36,127.3,3.9273]
[1726674264786,6.8888,127.37,127.32,3.9268]
[1726674264977,2.9633,127.37,127.29,28.11504794]
[1726674265277,2.9633,127.37,127.3,5.7701]
[1726674265581,2.9633,127.37,127.33,3.9265]
[1726674265784,2.9633,127.37,127.31,24.12]
[1726674265984,6.0241,127.39,127.31,24.12]
[1726674266181,2.9956,127.39,127.31,24.12]
[1726674266781,2.9956,127.39,127.35,3.9259]
[1726674267275,2.9956,127.39,127.34,3.9261]
[1726674267276,6.9204,127.39,127.34,3.9261]
[1726674267475,2.9956,127.39,127.31,24.12]
[1726674267877,3.9254,127.37,127.32,3.9267]
[1726674268380,2.9956,127.39,127.32,3.9267]
[1726674268774,3.9252,127.38,127.33,3.9265]
[1726674269488,6.9205,127.39,127.33,3.9264]
[1726674269780,6.9205,127.39,127.31,24.12]
[1726674270084,2.9956,127.39,127.31,24.12]
[1726674270483,2.9956,127.39,127.34,3.9261]
[1726674270974,3.9252,127.38,127.3,5.7701]
[1726674271178,2.9956,127.39,127.3,5.7701]
[1726674271377,24.12,127.38,127.3,5.7701]
[1726674271583,3.9258,127.36,127.31,3.9271]
[1726674271781,24.12,127.38,127.3,5.7701]
[1726674272176,28.0452,127.38,127.3,5.7701]
[1726674272583,2.9956,127.39,127.3,5.7701]
[1726674273678,6.9204,127.39,127.34,3.9262]
[1726674274283,2.9956,127.39,127.35,3.9259]
[1726674274481,2.9956,127.39,127.3,5.7701]
[1726674275883,3.9251,127.38,127.33,3.9264]
[1726674276079,24.12,127.38,127.3,5.7701]
[1726674276279,3.9256,127.36,127.31,3.927]
[1726674276675,27.0512,127.38,127.3,2.9704]
[1726674276885,24.12,127.36,127.26,157.14]
[1726674277085,3.9264,127.34,127.29,3.9276]
[1726674277482,2.8721,127.35,127.26,160.0588]
[1726674277686,24.12,127.34,127.26,160.0588]
[1726674278183,3.927,127.32,127.26,160.0588]
[1726674278488,24.12,127.34,127.26,160.0588]
[1726674278784,3.9267,127.33,127.28,3.928]
[1726674279282,28.0464,127.34,127.29,3.9278]
[1726674279789,28.0464,127.34,127.26,160.0588]
[1726674279979,2.8721,127.35,127.26,160.0588]
[1726674280181,24.12,127.34,127.2,11.7912]
[1726674280487,24.12,127.34,127.23,3.0337]
[1726674280787,3.0947,127.33,127.23,3.0337]
[1726674281185,3.0947,127.33,127.26,3.9287]
[1726674281186,3.9273,127.31,127.26,3.9287]
[1726674281580,3.9273,127.31,127.23,3.0337]
[1726674282083,3.9276,127.3,127.23,3.0337]
[1726674282478,24.12,127.32,127.23,3.0337]
[1726674282783,26.9927,127.32,127.23,3.0337]
[1726674283084,26.9927,127.32,127.24,3.9292]
[1726674283887,3.9279,127.29,127.24,3.9292]
[1726674284383,3.9279,127.29,127.25,3.929]
[1726674284587,3.9276,127.3,127.23,3.0337]
[1726674284890,3.9276,127.3,127.25,3.929]
[1726674285991,3.9276,127.3,127.26,3.9287]
[1726674286686,3.9276,127.3,127.23,3.0337]
[1726674286687,3.9278,127.29,127.25,3.9289]
[1726674286892,2.8727,127.32,127.23,3.0337]
[1726674287189,3.9282,127.28,127.24,3.9291]
[1726674287385,3.9282,127.28,127.23,3.0337]
[1726674287787,3.9282,127.28,127.24,3.9292]
[1726674287989,3.9287,127.27,127.21,3.0979]
[1726674288184,6.82205432,127.29,127.21,3.0979]
[1726674288386,24.12,127.28,127.22,3.9298]
[1726674288690,24.12,127.28,127.19,2.7981]
[1726674289095,3.0064,127.27,127.19,2.7981]
[1726674289893,3.0064,127.27,127.21,3.9301]
[1726674289894,3.9292,127.25,127.21,3.9301]
[1726674290602,3.9292,127.25,127.2,3.9304]
[1726674290895,3.9294,127.24,127.2,3.9304]
[1726674291290,24.12,127.26,127.2,3.9304]
[1726674291491,3.9293,127.25,127.2,3.9304]
[1726674291684,24.12,127.26,127.2,3.9304]
[1726674291887,3.0064,127.27,127.19,26.9181]
[1726674292195,2.8925,127.29,127.19,26.9181]
[1726674292395,2.8925,127.29,127.24,3.9292]
[1726674292688,3.9281,127.28,127.24,3.9292]
[1726674292889,2.8925,127.29,127.21,24.12]
[1726674293493,2.8925,127.29,127.25,3.9288]
[1726674293995,2.8925,127.29,127.21,24.12]
[1726674294195,2.8925,127.29,127.24,3.9293]
[1726674294694,6.8204,127.29,127.21,24.12]
[1726674295193,2.8925,127.29,127.21,24.12]
[1726674295600,6.8203,127.29,127.21,24.12]
[1726674296093,6.8203,127.29,127.24,3.9292]
[1726674296396,3.9281,127.28,127.24,3.9292]
[1726674296585,3.9281,127.28,127.21,24.12]
[1726674296790,2.8925,127.29,127.21,24.12]
[1726674297697,2.8925,127.29,127.25,3.929]
[1726674298098,2.8925,127.29,127.23,15.09]
[1726674298305,2.8925,127.29,127.27,3.9284]
[1726674298603,2.8925,127.29,127.23,15.09]
[1726674298899,2.8925,127.29,127.26,3.9287]
[1726674299607,2.8925,127.29,127.25,3.9289]
[1726674300102,2.8925,127.29,127.26,3.9286]
[1726674300295,2.8925,127.29,127.23,15.09]
[1726674300496,6.8204,127.29,127.22,15.09]
[1726674300695,2.8925,127.29,127.24,3.9292]
[1726674300893,21.9104,127.29,127.24,3.9292]
[1726674301096,3.0573,127.31,127.27,3.9282]
[1726674301401,3.9272,127.31,127.25,15.09]
[1726674301702,21.0111,127.32,127.25,3.9289]
[1726674301902,3.9273,127.31,127.23,15.09]
[1726674302398,3.0484,127.32,127.27,15.09]
[1726674303199,15.09,127.36,127.28,15.09]
[1726674303395,6.0348,127.38,127.31,15.09]
[1726674303795,6.0348,127.38,127.3,15.09]
[1726674304003,6.0348,127.38,127.32,3.9267]
[1726674304202,9.9599,127.38,127.29,24.15]
[1726674305202,9.9599,127.38,127.32,3.9267]
[1726674305807,3.0598,127.38,127.31,24.15]
[1726674306107,3.0598,127.38,127.32,2.8084]
[1726674306501,27.2574,127.41,127.35,3.9259]
[1726674306996,27.2574,127.41,127.32,5.6991]
[1726674307407,3.9244,127.4,127.32,5.6991]
[1726674307904,24.15,127.4,127.32,5.6991]
[1726674308207,24.15,127.37,127.32,2.8084]
[1726674308401,28.0756,127.37,127.32,2.8084]
[1726674309007,24.15,127.4,127.32,2.8084]
[1726674309802,3.1074,127.41,127.32,2.8084]
[1726674310312,3.1074,127.41,127.36,3.9256]
[1726674310705,3.1074,127.41,127.32,2.8084]
[1726674311711,3.9246,127.4,127.35,3.9258]
[1726674311906,3.9246,127.4,127.32,2.8084]
[1726674311907,3.0913,127.42,127.34,24.15]
[1726674312113,3.0913,127.42,127.4,3.9242]
[1726674312412,3.0913,127.42,127.36,24.15]
[1726674312719,3.0913,127.42,127.37,3.9251]
[1726674312909,3.0913,127.42,127.34,24.15]
[1726674314511,3.0913,127.42,127.37,3.9251]
[1726674314713,3.0913,127.42,127.34,24.15]
[1726674316106,3.0913,127.42,127.35,3.9259]
[1726674316307,3.9245,127.4,127.32,29.8504]
[1726674316502,2.9559,127.41,127.32,29.8504]
[1726674317010,6.8802,127.41,127.32,29.8504]
[1726674317205,6.8802,127.41,127.35,3.9257]
[1726674317405,2.9559,127.41,127.32,29.8504]
[1726674317808,2.9559,127.41,127.36,3.9254]
[1726674319111,6.88,127.41,127.36,3.9254]
[1726674319412,2.9559,127.41,127.35,3.9258]
[1726674319717,2.9559,127.41,127.32,29.8504]
[1726674319912,2.9559,127.41,127.33,3.9263]
[1726674320216,2.9559,127.41,127.32,29.8504]
[1726674321117,24.15,127.4,127.32,2.8084]
[1726674321411,24.15,127.38,127.28,2.984]
[1726674321918,3.9261,127.35,127.3,3.9275]
[1726674322216,28.16523817,127.38,127.28,2.984]
[1726674322617,3.9259,127.36,127.31,3.9271]
[1726674322916,24.15,127.38,127.29,24.15]
[1726674323112,3.9252,127.38,127.33,3.9265]
[1726674324120,3.9252,127.38,127.34,3.9262]
[1726674324415,5.8437,127.41,127.31,24.15]
[1726674324621,5.8437,127.41,127.37,3.9251]
[1726674324808,5.8437,127.41,127.33,24.15]
[1726674324809,2.9559,127.41,127.33,24.15]
[1726674325212,2.9559,127.41,127.37,3.9252]
[1726674325614,6.8801,127.41,127.37,3.9252]
[1726674326319,6.8801,127.41,127.36,3.9255]
[1726674327414,2.9559,127.41,127.33,24.15]
[1726674327620,2.9559,127.41,127.35,3.9258]
[1726674328420,3.9249,127.39,127.35,3.9258]
[1726674331422,3.84546708,127.4,127.31,24.15]
[1726674331821,3.9249,127.39,127.34,3.926]
[1726674332020,2.9559,127.41,127.31,24.15]
[1726674332322,3.9246,127.4,127.35,3.9258]
[1726674332717,2.9559,127.41,127.33,24.15]
[1726674333118,6.8801,127.41,127.36,3.9254]
[1726674333624,3.9244,127.4,127.36,3.9254]
[1726674333819,3.9244,127.4,127.35,3.9258]
[1726674334213,3.9244,127.4,127.33,15.09]
[1726674334722,3.9244,127.4,127.35,3.9257]
[1726674335622,3.0913,127.42,127.35,15.09]
[1726674335827,2.9885,127.45,127.39,15.09]
[1726674336028,2.8035,127.46,127.39,15.09]
[1726674336219,2.8035,127.46,127.41,3.9241]
[1726674337924,2.8035,127.46,127.39,24.11]
[1726674338127,2.9885,127.49,127.41,24.11]
[1726674338340,6.9102,127.49,127.41,24.11]
[1726674338623,2.9885,127.49,127.45,3.9229]
[1726674339528,6.9103,127.49,127.45,3.9229]
[1726674340028,6.9103,127.49,127.41,24.11]
[1726674340221,3.0273,127.51,127.41,24.11]
[1726674340627,6.9485,127.51,127.46,3.9224]
[1726674341023,6.9485,127.51,127.43,24.11]
[1726674341319,3.0273,127.51,127.43,24.11]
[1726674341721,6.9484,127.51,127.43,24.11]
[1726674341915,3.0273,127.51,127.43,24.11]
[1726674342325,3.9215,127.5,127.44,3.9229]
[1726674343622,3.0273,127.51,127.43,3.9234]
[1726674343623,3.9217,127.49,127.43,3.9234]
[1726674344026,3.0273,127.51,127.43,3.9234]
[1726674344329,3.9218,127.49,127.43,3.9234]
[1726674345525,3.9218,127.49,127.44,3.9231]
[1726674348727,3.9218,127.49,127.41,24.11]
[1726674349032,3.0273,127.51,127.41,24.11]
[1726674349427,3.0273,127.51,127.42,3.9236]
[1726674349827,3.0273,127.51,127.41,24.11]
[1726674350427,3.9221,127.48,127.43,3.9233]
[1726674351622,3.923,127.45,127.4,9.8559]
[1726674351823,27.1673,127.5,127.4,5.9317]
[1726674352328,3.9222,127.47,127.41,3.9239]
[1726674352637,27.1673,127.5,127.4,5.9317]
[1726674353338,3.924,127.42,127.36,28.0354]
[1726674353521,24.11,127.46,127.36,24.11]
[1726674353724,24.11,127.44,127.35,5.9349]
[1726674353921,3.92761787,127.43,127.35,5.9349]
[1726674354726,2.9735,127.44,127.35,5.9349]
[1726674354930,2.9735,127.44,127.36,24.11]
[1726674355535,3.9237,127.43,127.37,3.9253]
[1726674357231,3.9232,127.44,127.38,3.9248]
[1726674357530,9.91268894,127.45,127.38,3.9248]
[1726674358034,3.9237,127.43,127.37,3.9252]
[1726674358238,9.91268894,127.45,127.36,24.11]
[1726674358630,3.924,127.42,127.37,3.9253]
[1726674358934,9.91268894,127.45,127.36,24.11]
[1726674359132,3.9234,127.44,127.38,3.9249]
[1726674359835,3.9236,127.43,127.38,3.9249]
[1726674360629,3.9236,127.43,127.35,5.9349]
[1726674360630,15.08,127.43,127.35,21.0149]
[1726674361233,15.08,127.42,127.34,15.08]
[1726674361543,15.08,127.4,127.32,15.08]
[1726674361837,3.9252,127.38,127.32,15.08]
[1726674362037,2.8753,127.39,127.32,15.08]
[1726674362237,17.9553,127.39,127.31,6.1211]
[1726674362832,3.9251,127.38,127.33,3.9265]
[1726674363033,2.8753,127.39,127.34,15.08]
[1726674364140,2.8753,127.39,127.35,3.9259]
[1726674364339,2.8753,127.39,127.33,24.14]
[1726674364539,6.8,127.39,127.34,3.926]
[1726674364835,2.8753,127.39,127.34,3.926]
[1726674365941,2.8753,127.39,127.35,3.9258]
[1726674367442,2.8654,127.44,127.35,24.14]
[1726674367833,3.9239,127.42,127.37,3.9251]
[1726674368037,3.0174,127.44,127.37,24.14]
[1726674368436,3.0174,127.44,127.38,3.0769]
[1726674368642,3.0174,127.44,127.4,3.9243]
[1726674369639,3.0174,127.44,127.38,3.0769]
[1726674369640,6.9406,127.44,127.39,3.9246]
[1726674369946,3.0174,127.44,127.38,3.0769]
[1726674370145,3.9243,127.41,127.36,3.9255]
[1726674370339,30.0058,127.44,127.34,3.0769]
[1726674370641,3.9247,127.39,127.34,7.003]
[1726674371040,30.0058,127.44,127.34,3.0769]
[1726674371041,24.14,127.42,127.34,3.0769]
[1726674371644,3.9249,127.39,127.34,3.0769]
[1726674372445,3.9253,127.38,127.34,3.0769]
[1726674372836,3.9253,127.37,127.34,3.0769]
[1726674373042,24.14,127.42,127.31,27.1859]
[1726674373244,24.14,127.4,127.31,3.0459]
[1726674373549,24.14,127.38,127.29,3.9276]
[1726674373752,6.66655357,127.37,127.29,3.9276]
[1726674373939,3.9262,127.35,127.29,3.9276]
[1726674374342,6.66655357,127.37,127.29,24.14]
[1726674374343,2.8374,127.37,127.29,24.14]
[1726674374541,2.8374,127.37,127.3,3.0382]
[1726674375345,26.9774,127.37,127.28,2.9031]
[1726674375547,3.9267,127.33,127.28,2.9031]
[1726674375744,24.14,127.35,127.25,24.14]
[1726674375949,24.14,127.35,127.28,3.9281]
[1726674376346,24.14,127.33,127.25,6.9708]
[1726674376646,24.14,127.35,127.25,3.042]
[1726674376850,3.9271,127.32,127.25,3.042]
[1726674377150,3.9271,127.32,127.26,3.9285]
[1726674377550,3.9272,127.31,127.26,3.9285]
[1726674377744,24.14,127.35,127.26,3.9285]
[1726674377947,24.14,127.35,127.26,24.14]
[1726674378144,3.9267,127.33,127.26,24.14]
[1726674378349,3.9267,127.33,127.27,3.9282]
[1726674378553,3.9267,127.33,127.26,24.14]
[1726674378954,3.0058,127.36,127.26,24.14]
[1726674379250,3.0058,127.36,127.28,24.14]
[1726674379455,2.8374,127.37,127.3,24.14]
[1726674379862,6.7629,127.37,127.3,24.14]
[1726674380059,6.7629,127.37,127.31,3.927]
[1726674380250,2.8374,127.37,127.31,3.927]
[1726674380651,2.8374,127.37,127.28,24.14]
[1726674380860,2.8374,127.37,127.26,24.14]
[1726674382250,2.8374,127.37,127.28,3.9279]
[1726674382750,3.9268,127.33,127.28,3.9279]
[1726674382957,2.8374,127.37,127.26,24.14]
[1726674383161,3.9261,127.35,127.26,24.14]
[1726674383766,3.9261,127.35,127.3,3.9272]
[1726674384263,3.9263,127.34,127.29,3.9277]
[1726674384566,3.9263,127.34,127.26,24.14]
[1726674384760,3.9263,127.34,127.28,3.9279]
[1726674384962,2.8374,127.37,127.28,3.9279]
[1726674385164,2.8374,127.37,127.26,24.14]
[1726674385365,2.8374,127.37,127.28,24.14]
[1726674386157,2.8374,127.37,127.31,3.9272]
[1726674386363,2.8374,127.37,127.28,24.14]
[1726674386562,2.8374,127.37,127.3,24.14]
[1726674386763,6.7628,127.37,127.32,3.9267]